bitfinex/quotes_SOLUSD_20250219
["timestamp","ask_amount","ask_price","bid_price","bid_amount"]
[1739932524484,82.7,169.19,169.15,12.03145059]
[1739932524690,82.7,169.21,169.16,19.2612272]
[1739932525395,82.7,169.2,169.18,19.2612272]
[1739932525600,82.7,169.23,169.18,19.2612272]
[1739932526190,82.7,169.22,169.21,19.2612272]
[1739932526406,82.7,169.25,169.21,19.2612272]
[1739932526608,82.7,169.25,169.22,19.2612272]
[1739932527291,82.7,169.25,169.23,19.2612272]
[1739932530594,82.7,169.25,169.22,19.2612272]
[1739932531998,82.7,169.25,169.21,19.2612272]
[1739932533020,82.7,169.25,169.23,0.063]
[1739932534317,82.7,169.25,169.23,19.3242272]
[1739932535798,82.7,169.25,169.23,0.063]
[1739932537431,82.7,169.24,169.23,0.063]
[1739932540515,101.9612272,169.24,169.23,0.063]
[1739932540829,6.1061,169.25,169.23,0.063]
[1739932541210,4.58,169.25,169.23,0.063]
[1739932542227,19.2612272,169.24,169.23,0.063]
[1739932542936,42.45057573,169.24,169.23,0.063]
[1739932543535,27.0387272,169.24,169.23,0.063]
[1739932544225,19.2612272,169.24,169.23,0.063]
[1739932544614,12.03596996,169.24,169.23,0.063]
[1739932546247,5.9087,169.24,169.23,0.063]
[1739932546538,17.94466996,169.24,169.23,0.063]
[1739932547913,5.9087,169.24,169.23,0.063]
[1739932549451,0.03,169.25,169.23,0.063]
[1739932550935,12.06596996,169.25,169.23,0.063]
[1739932553013,0.03,169.25,169.23,0.063]
[1739932562462,0.03,169.25,169.24,12.03596996]
[1739932563066,0.03,169.25,169.24,25.44781849]
[1739932563238,0.03,169.25,169.24,12.03596996]
[1739932563867,0.03,169.25,169.24,25.44781849]
[1739932564069,0.03,169.25,169.24,31.35651849]
[1739932564281,0.03,169.25,169.24,25.44781849]
[1739932565336,0.03,169.25,169.24,12.03596996]
[1739932567079,0.03,169.25,169.23,1.6538]
[1739932567264,82.7,169.24,169.23,0.063]
[1739932567444,94.73596996,169.24,169.23,0.063]
[1739932567969,12.03596996,169.24,169.23,0.063]
[1739932568160,0.03,169.25,169.23,0.063]
[1739932568161,12.06596996,169.25,169.23,0.063]
[1739932568335,0.03,169.25,169.23,0.063]
[1739932568750,12.03596996,169.24,169.23,0.063]
[1739932570143,20.06026996,169.24,169.23,0.063]
[1739932570370,33.47211849,169.24,169.23,0.063]
[1739932570975,18.06026996,169.24,169.23,0.063]
[1739932571374,22.95259296,169.24,169.23,0.063]
[1739932572987,21.95259296,169.24,169.23,0.063]
[1739932574093,20.95259296,169.24,169.23,0.063]
[1739932574583,25.53259296,169.24,169.23,0.063]
[1739932577494,12.03596996,169.24,169.23,0.063]
[1739932577701,12.06596996,169.25,169.23,0.063]
[1739932577896,0.03,169.25,169.23,0.063]
[1739932579797,82.7,169.24,169.23,0.063]
[1739932580301,0.03,169.25,169.23,12.09896996]
[1739932581112,0.03,169.25,169.24,12.03596996]
[1739932581583,0.03,169.25,169.24,25.44781849]
[1739932581963,0.03,169.25,169.24,32.95301849]
[1739932582199,0.03,169.25,169.24,27.04431849]
[1739932582500,0.03,169.25,169.24,13.63246996]
[1739932588174,0.03,169.25,169.24,32.95301849]
[1739932590109,0.03,169.25,169.24,27.04431849]
[1739932590780,0.03,169.25,169.24,32.95301849]
[1739932594608,0.03,169.25,169.24,27.04431849]
[1739932594983,0.03,169.25,169.24,13.63246996]
[1739932595193,0.03,169.25,169.24,1.5965]
[1739932595703,0.03,169.25,169.23,0.063]
[1739932596923,94.73596996,169.24,169.23,0.063]
[1739932597213,0.03,169.25,169.23,0.063]
[1739932598212,82.73,169.25,169.24,20.0]
[1739932598395,0.03,169.25,169.23,12.09896996]
[1739932598711,0.03,169.25,169.24,32.03596996]
[1739932602823,0.03,169.25,169.23,0.063]
[1739932603186,82.7,169.24,169.23,0.063]
[1739932603384,94.73596996,169.24,169.23,0.063]
[1739932603691,12.03596996,169.24,169.23,0.063]
[1739932607512,0.03,169.25,169.23,0.063]
[1739932609928,12.06596996,169.25,169.23,0.063]
[1739932610241,12.03596996,169.24,169.23,0.063]
[1739932612927,14.03596996,169.24,169.23,0.063]
[1739932613531,29.10421849,169.24,169.23,0.063]
[1739932614008,35.74101849,169.24,169.23,0.063]
[1739932615336,20.0,169.2,169.13,0.063]
[1739932615514,12.03596996,169.16,169.13,0.063]
[1739932617638,12.03596996,169.17,169.13,0.063]
[1739932619332,82.7,169.15,169.13,0.063]
[1739932619536,12.03596996,169.14,169.13,0.063]
[1739932619743,94.73596996,169.14,169.13,0.063]
[1739932620413,12.03596996,169.14,169.13,0.063]
[1739932620614,13.03596996,169.14,169.13,0.063]
[1739932620816,27.44781849,169.14,169.13,0.063]
[1739932621614,12.03596996,169.14,169.13,0.063]
[1739932623112,15.04700918,169.17,169.13,0.063]
[1739932623322,16.61596996,169.19,169.13,12.09896996]
[1739932623646,2.98459584,169.22,169.15,12.03596996]
[1739932623821,16.61596996,169.23,169.14,20.0]
[1739932624151,12.03596996,169.23,169.16,12.03596996]
[1739932624719,12.03596996,169.22,169.16,12.03596996]
[1739932624951,82.7,169.21,169.16,12.03596996]
[1739932625552,82.7,169.21,169.17,12.03596996]
[1739932625743,82.7,169.2,169.17,12.03596996]
[1739932628446,82.7,169.2,169.16,12.03596996]
[1739932629146,82.7,169.19,169.16,12.03596996]
[1739932629814,82.7,169.19,169.13,12.09896996]
[1739932630023,82.7,169.18,169.13,12.09896996]
[1739932631237,82.7,169.18,169.14,12.03596996]
[1739932633456,82.7,169.18,169.14,12.03596996]
[1739932635158,82.7,169.17,169.14,12.03596996]
[1739932636661,82.7,169.17,169.15,12.03596996]
[1739932636853,82.7,169.17,169.16,12.03596996]
[1739932637658,82.7,169.22,169.16,12.03596996]
[1739932637955,82.7,169.22,169.21,12.03596996]
[1739932639232,0.03,169.23,169.21,12.03596996]
[1739932639558,0.03,169.23,169.22,32.03596996]
[1739932644578,0.03,169.23,169.22,45.44781849]
[1739932646154,0.03,169.23,169.22,25.44781849]
[1739932650555,82.7,169.22,169.14,0.063]
[1739932650753,82.7,169.22,169.14,12.09896996]
[1739932650956,94.73596996,169.22,169.14,12.09896996]
[1739932651573,94.73596996,169.22,169.15,12.03596996]
[1739932652446,12.03596996,169.21,169.14,12.09896996]
[1739932652668,12.03596996,169.2,169.14,0.063]
[1739932653046,12.03596996,169.21,169.14,0.063]
[1739932653260,94.73596996,169.22,169.15,12.03596996]
[1739932653462,82.7,169.22,169.16,12.03596996]
[1739932655981,82.7,169.21,169.16,12.03596996]
[1739932657387,82.7,169.21,169.14,0.063]
[1739932657565,94.73596996,169.21,169.14,32.09896996]
[1739932658876,94.73596996,169.21,169.15,12.03596996]
[1739932659382,94.73596996,169.21,169.14,32.09896996]
[1739932659754,94.73596996,169.21,169.14,12.09896996]
[1739932661886,82.7,169.2,169.14,12.09896996]
[1739932664679,82.7,169.2,169.15,25.44781849]
[1739932664886,82.7,169.2,169.16,12.03596996]
[1739932666675,82.7,169.2,169.15,25.44781849]
[1739932667385,82.7,169.2,169.16,12.03596996]
[1739932667595,82.7,169.2,169.17,12.03596996]
[1739932668396,82.7,169.2,169.18,12.03596996]
[1739932668593,82.7,169.2,169.18,7.70262927]
[1739932668892,82.7,169.22,169.18,7.70262927]
[1739932672696,82.7,169.22,169.19,7.70262927]
[1739932672878,0.03,169.23,169.19,7.70262927]
[1739932673088,0.03,169.23,169.2,7.70262927]
[1739932673277,0.03,169.23,169.21,7.70262927]
[1739932673997,0.03,169.23,169.22,7.70262927]
[1739932674200,0.03,169.23,169.22,21.1144778]
[1739932676904,0.03,169.23,169.22,27.0238778]
[1739932677206,0.03,169.23,169.22,21.1144778]
[1739932679004,0.03,169.23,169.21,7.70262927]
[1739932679202,0.03,169.23,169.21,13.41184853]
[1739932679703,0.03,169.23,169.21,21.1144778]
[1739932680198,0.03,169.23,169.22,7.70262927]
[1739932680586,0.03,169.23,169.22,12.02778954]
[1739932680977,0.03,169.23,169.22,31.34903807]
[1739932681405,0.03,169.23,169.22,25.43963807]
[1739932682604,0.03,169.23,169.21,12.02778954]
[1739932682806,0.03,169.23,169.2,12.02778954]
[1739932682995,0.03,169.23,169.2,13.41184853]
[1739932683194,0.03,169.23,169.21,12.02778954]
[1739932683394,0.03,169.23,169.22,12.02778954]
[1739932685624,0.03,169.23,169.22,26.43963807]
[1739932685928,0.03,169.23,169.22,33.34903807]
[1739932686127,0.03,169.23,169.22,32.34903807]
[1739932686426,0.03,169.23,169.22,31.34903807]
[1739932686633,0.03,169.23,169.22,13.41184853]
[1739932686923,0.03,169.23,169.22,25.43963807]
[1739932687608,0.03,169.23,169.22,32.34903807]
[1739932688824,0.03,169.23,169.22,114.24903807]
[1739932689023,0.03,169.23,169.22,157.75913807]
[1739932689631,0.03,169.23,169.22,296.05913807]
[1739932689803,0.03,169.25,169.24,56.58]
[1739932689999,0.03,169.26,169.25,14.41184853]
[1739932690199,0.03,169.26,169.25,146.3307525]
[1739932690400,0.03,169.28,169.27,70.99184853]
[1739932690611,0.03,169.28,169.27,83.01963807]
[1739932691110,0.03,169.28,169.27,88.92733807]
[1739932691899,82.7,169.38,169.31,21.0]
[1739932692095,82.73,169.4,169.37,12.02778954]
[1739932692307,0.03,169.4,169.38,25.43963807]
[1739932692519,0.03,169.4,169.39,25.43963807]
[1739932693014,0.03,169.4,169.37,12.02778954]
[1739932693215,0.03,169.4,169.35,12.02778954]
[1739932693417,0.03,169.4,169.36,12.02778954]
[1739932693614,0.03,169.4,169.39,12.02778954]
[1739932693803,0.03,169.4,169.39,25.43963807]
[1739932694134,0.03,169.4,169.39,13.41184853]
[1739932694302,0.03,169.4,169.36,12.02778954]
[1739932694698,0.03,169.4,169.35,25.43963807]
[1739932694919,12.02778954,169.38,169.32,12.02778954]
[1739932695095,12.02778954,169.37,169.3,80.9]
[1739932695299,18.46348954,169.37,169.3,92.92778954]
[1739932695729,18.46348954,169.37,169.31,13.41184853]
[1739932695908,18.46348954,169.37,169.31,25.43963807]
[1739932696114,94.72778954,169.39,169.33,25.43963807]
[1739932696724,12.02778954,169.37,169.31,12.02778954]
[1739932697026,12.02778954,169.34,169.27,12.02778954]
[1739932697207,94.72778954,169.35,169.28,12.02778954]
[1739932697713,94.72778954,169.35,169.29,13.41184853]
[1739932697916,82.7,169.35,169.29,25.43963807]
[1739932698634,82.7,169.35,169.31,25.43963807]
[1739932698835,82.7,169.35,169.29,25.43963807]
[1739932699025,94.72778954,169.35,169.29,25.43963807]
[1739932699229,12.02778954,169.34,169.26,80.9]
[1739932699440,12.02778954,169.34,169.27,12.02778954]
[1739932699441,94.72778954,169.34,169.27,12.02778954]
[1739932700040,82.7,169.34,169.28,12.02778954]
[1739932700539,82.7,169.34,169.32,12.02778954]
[1739932700719,82.7,169.37,169.32,12.02778954]
[1739932701108,82.7,169.37,169.33,12.02778954]
[1739932701519,82.7,169.37,169.31,12.02778954]
[1739932701836,94.72778954,169.37,169.31,12.02778954]
[1739932702029,82.7,169.37,169.31,12.02778954]
[1739932703912,82.7,169.37,169.32,12.02778954]
[1739932704111,82.7,169.37,169.33,12.02778954]
[1739932704946,82.7,169.37,169.34,12.02778954]
[1739932705119,82.73,169.4,169.35,12.02778954]
[1739932705461,82.73,169.4,169.36,12.02778954]
[1739932706036,82.73,169.4,169.36,13.41184853]
[1739932708148,82.73,169.4,169.33,12.02778954]
[1739932708149,94.75778954,169.4,169.33,12.02778954]
[1739932708327,94.75778954,169.4,169.34,13.41184853]
[1739932708641,82.73,169.4,169.34,25.43963807]
[1739932709448,82.7,169.39,169.34,25.43963807]
[1739932709655,0.03,169.4,169.28,80.9]
[1739932709656,12.02778954,169.35,169.28,80.9]
[1739932709945,94.72778954,169.34,169.27,12.02778954]
[1739932710143,12.02778954,169.36,169.29,13.41184853]
[1739932710320,82.7,169.35,169.3,12.02778954]
[1739932710524,82.7,169.35,169.29,13.41184853]
[1739932710525,82.7,169.35,169.29,12.02778954]
[1739932710725,12.02778954,169.34,169.27,12.02778954]
[1739932711042,12.02778954,169.34,169.28,13.41184853]
[1739932711243,94.72778954,169.35,169.28,25.43963807]
[1739932711747,82.7,169.35,169.29,12.02778954]
[1739932711929,82.7,169.35,169.31,12.02778954]
[1739932713349,82.73,169.4,169.32,12.02778954]
[1739932713516,82.7,169.39,169.34,25.43963807]
[1739932713718,0.03,169.4,169.36,12.02778954]
[1739932713944,0.03,169.4,169.37,12.02778954]
[1739932715039,0.03,169.4,169.38,13.41184853]
[1739932716524,0.03,169.4,169.36,12.02778954]
[1739932716724,0.03,169.4,169.37,12.02778954]
[1739932716922,0.03,169.4,169.38,12.02778954]
[1739932718342,0.03,169.4,169.38,13.41184853]
[1739932718523,0.03,169.4,169.38,12.02778954]
[1739932720348,0.03,169.4,169.39,25.43963807]
[1739932722879,0.03,169.4,169.36,12.02778954]
[1739932723170,0.03,169.4,169.35,12.02778954]
[1739932723376,0.03,169.4,169.36,13.41184853]
[1739932723879,0.03,169.4,169.36,25.43963807]
[1739932724045,0.03,169.4,169.38,25.43963807]
[1739932724355,0.03,169.4,169.39,25.43963807]
[1739932726370,0.03,169.4,169.39,31.34313807]
[1739932727172,0.03,169.4,169.39,25.43963807]
[1739932728783,0.03,169.4,169.39,31.34313807]
[1739932729075,0.03,169.45,169.44,20.0]
[1739932729246,0.03,169.52,169.49,13.41184853]
[1739932729452,0.03,169.52,169.51,12.02778954]
[1739932729652,0.03,169.52,169.51,25.43963807]
[1739932730248,0.03,169.54,169.52,13.41184853]
[1739932730450,0.03,169.54,169.53,31.33823807]
[1739932732179,0.03,169.54,169.53,113.23823807]
[1739932732850,0.03,169.54,169.53,154.74323807]
[1739932733053,0.03,169.57,169.55,1.0]
[1739932733363,0.03,169.57,169.55,162.60642761]
[1739932733748,0.03,169.57,169.55,300.90642761]
[1739932733950,0.03,169.57,169.56,15.41184853]
[1739932734251,0.03,169.57,169.56,45.36502761]
[1739932734465,0.03,169.57,169.56,51.29002761]
[1739932735246,0.03,169.57,169.56,50.29002761]
[1739932735449,0.03,169.57,169.56,36.87817908]
[1739932735873,0.03,169.57,169.56,51.29002761]
[1739932736254,0.03,169.57,169.56,50.29002761]
[1739932736480,0.03,169.57,169.56,131.19002761]
[1739932736877,0.03,169.57,169.56,125.26502761]
[1739932737982,0.03,169.57,169.56,126.26502761]
[1739932738185,0.03,169.57,169.56,264.56502761]
[1739932738476,0.03,169.57,169.56,263.56502761]
[1739932739059,0.03,169.57,169.56,250.15317908]
[1739932739265,0.03,169.57,169.56,263.56502761]
[1739932739581,0.03,169.57,169.56,254.47467013]
[1739932740250,0.03,169.57,169.56,16.34928059]
[1739932740448,0.03,169.57,169.56,13.41184853]
[1739932740676,0.03,169.57,169.56,31.33723807]
[1739932741179,0.03,169.57,169.56,43.36502761]
[1739932741665,0.03,169.57,169.56,44.36502761]
[1739932742055,0.03,169.57,169.56,34.25753018]
[1739932742383,0.03,169.57,169.56,28.35993018]
[1739932743050,0.03,169.57,169.56,25.43963807]
[1739932745085,0.03,169.57,169.56,31.33723807]
[1739932745489,0.03,169.57,169.56,25.43963807]
[1739932746384,0.03,169.57,169.56,63.98608568]
[1739932748894,0.03,169.57,169.56,25.43963807]
[1739932753197,0.03,169.57,169.55,80.9]
[1739932753398,0.03,169.57,169.52,12.02778954]
[1739932753399,6.3229,169.57,169.52,12.02778954]
[1739932753688,18.35068954,169.57,169.5,92.92778954]
[1739932753870,6.3229,169.57,169.51,25.43963807]
[1739932754062,6.3229,169.57,169.53,12.02778954]
[1739932754291,6.3229,169.57,169.54,25.43963807]
[1739932754460,0.03,169.57,169.54,25.43963807]
[1739932754784,0.03,169.57,169.53,12.02778954]
[1739932754994,0.03,169.57,169.52,13.41184853]
[1739932755985,0.03,169.57,169.52,25.43963807]
[1739932757063,82.73,169.57,169.52,25.43963807]
[1739932757882,6.5867,169.53,169.47,105.64778954]
[1739932758078,6.5867,169.53,169.47,93.62]
[1739932758079,101.31448954,169.53,169.47,93.62]
[1739932758276,89.2867,169.53,169.48,13.41184853]
[1739932759073,89.2867,169.53,169.48,25.43963807]
[1739932759268,89.2867,169.53,169.52,0.063]
[1739932761270,101.31448954,169.53,169.52,0.063]
[1739932762176,89.2867,169.53,169.52,0.063]
[1739932763496,18.61448954,169.53,169.52,0.063]
[1739932763890,20.0,169.5,169.42,80.9]
[1739932764097,12.02778954,169.47,169.4,12.02778954]
[1739932764277,12.02778954,169.47,169.41,13.41184853]
[1739932764482,94.72778954,169.49,169.42,12.02778954]
[1739932764800,12.02778954,169.48,169.41,12.02778954]
[1739932766077,82.7,169.49,169.39,0.063]
[1739932766078,12.02778954,169.44,169.39,0.063]
[1739932766278,94.72778954,169.45,169.39,13.47484853]
[1739932766502,7.9814,169.46,169.39,0.063]
[1739932766503,94.72778954,169.44,169.39,0.063]
[1739932766679,12.02778954,169.43,169.39,0.063]
[1739932767207,82.7,169.42,169.39,0.063]
[1739932767704,82.7,169.42,169.39,25.50263807]
[1739932768004,82.7,169.42,169.39,12.09078954]
[1739932768706,82.7,169.42,169.41,12.02778954]
[1739932770478,82.7,169.42,169.4,12.02778954]
[1739932770903,12.02778954,169.46,169.41,13.41184853]
[1739932771208,12.02778954,169.47,169.41,13.41184853]
[1739932772001,12.02778954,169.46,169.41,13.41184853]
[1739932772304,12.02778954,169.46,169.39,12.09078954]
[1739932773203,12.02778954,169.46,169.4,13.41184853]
[1739932773408,12.02778954,169.47,169.41,12.02778954]
[1739932773784,12.02778954,169.47,169.4,25.43963807]
[1739932774889,82.7,169.46,169.4,25.43963807]
[1739932775219,82.7,169.46,169.41,12.02778954]
[1739932776408,82.7,169.52,169.45,25.43963807]
[1739932776610,82.7,169.52,169.48,12.02778954]
[1739932779088,82.7,169.54,169.5,12.02778954]
[1739932779283,82.7,169.56,169.51,12.02778954]
[1739932779712,82.7,169.56,169.5,12.02778954]
[1739932780394,82.7,169.56,169.51,12.02778954]
[1739932782995,82.73,169.56,169.51,12.02778954]
[1739932783817,82.73,169.56,169.52,12.02778954]
[1739932785103,0.03,169.56,169.53,12.02778954]
[1739932785301,0.03,169.56,169.52,12.02778954]
[1739932786419,0.03,169.56,169.53,12.02778954]
[1739932786587,0.03,169.56,169.54,13.41184853]
[1739932786912,0.03,169.56,169.55,25.43963807]
[1739932788722,0.03,169.56,169.54,12.02778954]
[1739932789086,0.03,169.56,169.54,25.3982448]
[1739932789922,0.03,169.56,169.52,12.02778954]
[1739932790093,0.03,169.56,169.53,13.41184853]
[1739932790692,0.03,169.56,169.51,92.92778954]
[1739932790898,12.05778954,169.56,169.51,80.9]
[1739932791626,0.03,169.56,169.52,25.43963807]
[1739932792217,0.03,169.56,169.53,12.02778954]
[1739932793121,0.03,169.56,169.54,12.02778954]
[1739932793421,0.03,169.56,169.55,12.02778954]
[1739932800630,0.03,169.56,169.52,80.963]
[1739932800814,0.03,169.56,169.53,25.43963807]
[1739932801026,0.03,169.56,169.55,13.41184853]
[1739932801200,0.03,169.56,169.53,12.02778954]
[1739932801400,0.03,169.56,169.52,80.963]
[1739932801718,0.03,169.56,169.52,0.063]
[1739932801900,0.03,169.56,169.52,12.09078954]
[1739932802102,0.03,169.56,169.54,12.02778954]
[1739932802321,0.03,169.56,169.55,13.41184853]
[1739932802916,0.03,169.56,169.55,25.43963807]
[1739932804015,0.03,169.56,169.55,31.33753807]
[1739932806929,0.03,169.57,169.56,13.41184853]
[1739932807135,0.03,169.57,169.56,25.43963807]
[1739932807732,0.03,169.57,169.56,13.41184853]
[1739932807934,0.03,169.57,169.53,12.02778954]
[1739932808239,12.02778954,169.56,169.52,0.063]
[1739932808534,12.02778954,169.54,169.52,0.063]
[1739932808710,12.02778954,169.55,169.52,0.063]
[1739932809614,94.72778954,169.54,169.52,0.063]
[1739932809827,82.7,169.53,169.52,0.063]
[1739932810907,82.7,169.53,169.52,12.09078954]
[1739932811319,82.7,169.53,169.52,0.063]
[1739932813242,12.02778954,169.54,169.52,0.063]
[1739932813409,12.02778954,169.53,169.52,0.063]
[1739932813615,13.53978954,169.53,169.52,0.063]
[1739932814507,20.0,169.5,169.41,12.02778954]
[1739932814706,12.02778954,169.47,169.41,13.41184853]
[1739932815140,12.02778954,169.48,169.41,25.43963807]
[1739932816141,12.02778954,169.47,169.41,13.41184853]
[1739932817133,12.02778954,169.44,169.4,0.063]
[1739932817441,12.02778954,169.45,169.4,0.063]
[1739932818022,18.68748954,169.46,169.41,0.063]
[1739932818223,6.6597,169.46,169.41,0.063]
[1739932818833,16.58778954,169.47,169.41,0.063]
[1739932819135,16.58778954,169.47,169.41,12.09078954]
[1739932820228,12.02778954,169.48,169.42,12.02778954]
[1739932820612,12.02778954,169.48,169.41,12.09078954]
[1739932820934,12.02778954,169.47,169.41,12.09078954]
[1739932821138,12.02778954,169.46,169.41,0.063]
[1739932821434,94.72778954,169.48,169.42,12.02778954]
[1739932822207,9.24429169,169.5,169.42,12.02778954]
[1739932822208,82.7,169.47,169.42,12.02778954]
[1739932823416,82.7,169.47,169.43,12.02778954]
[1739932823842,82.7,169.47,169.41,0.063]
[1739932824017,82.7,169.47,169.42,12.02778954]
[1739932825440,82.7,169.47,169.43,12.02778954]
[1739932826316,82.7,169.47,169.42,12.02778954]
[1739932826519,82.7,169.47,169.41,12.09078954]
[1739932827348,12.02778954,169.46,169.41,0.063]
[1739932827842,12.02778954,169.44,169.41,0.063]
[1739932828065,12.02778954,169.43,169.41,0.063]
[1739932828340,32.02778954,169.44,169.41,0.063]
[1739932828552,82.7,169.47,169.43,12.02778954]
[1739932828846,82.7,169.47,169.44,12.02778954]
[1739932829032,82.7,169.49,169.44,12.02778954]
[1739932829235,82.7,169.49,169.45,13.41184853]
[1739932829414,82.7,169.52,169.46,12.02778954]
[1739932829610,82.7,169.52,169.47,12.02778954]
[1739932829842,82.73,169.52,169.47,12.02778954]
[1739932831347,12.02778954,169.5,169.44,12.02778954]
[1739932833643,12.02778954,169.51,169.45,12.02778954]
[1739932833943,94.75778954,169.52,169.45,12.02778954]
[1739932834149,12.02778954,169.51,169.45,13.41184853]
[1739932834356,94.72778954,169.51,169.45,13.41184853]
[1739932834941,94.72778954,169.51,169.45,12.02778954]
[1739932835344,82.7,169.51,169.45,12.02778954]
[1739932835548,82.7,169.5,169.45,12.02778954]
[1739932841346,82.7,169.5,169.47,12.02778954]
[1739932842873,82.7,169.5,169.48,12.02778954]
[1739932843073,0.03,169.52,169.48,12.02778954]
[1739932843972,0.03,169.52,169.47,12.02778954]
[1739932844670,0.03,169.52,169.48,12.02778954]
[1739932849281,0.03,169.52,169.5,12.02778954]
[1739932849979,0.03,169.52,169.49,12.02778954]
[1739932851550,0.03,169.52,169.5,12.02778954]
[1739932852350,0.03,169.52,169.51,25.43963807]
[1739932852551,0.03,169.52,169.51,21.08195948]
[1739932858086,0.03,169.52,169.51,26.98125948]
[1739932859078,0.03,169.52,169.51,32.90625948]
[1739932860660,0.03,169.52,169.51,21.08195948]
[1739932861391,0.03,169.52,169.51,26.98125948]
[1739932862056,0.03,169.52,169.51,114.80625948]
[1739932862253,0.03,169.56,169.55,27.67011095]
[1739932862665,0.03,169.56,169.55,41.08195948]
[1739932866584,0.03,169.56,169.55,46.97985948]
[1739932867096,0.03,169.56,169.55,127.87985948]
[1739932867667,0.03,169.56,169.55,124.91848786]
[1739932867890,0.03,169.56,169.55,94.31184853]
[1739932868187,0.03,169.56,169.52,7.67011095]
[1739932868387,7.70011095,169.56,169.49,7.67011095]
[1739932868774,0.03,169.56,169.5,7.67011095]
[1739932869091,0.03,169.56,169.51,21.08195948]
[1739932870993,0.03,169.56,169.54,13.41184853]
[1739932871193,0.03,169.56,169.54,7.67011095]
[1739932871995,0.03,169.56,169.52,7.67011095]
[1739932872168,0.03,169.56,169.51,7.67011095]
[1739932872492,0.03,169.56,169.52,21.08195948]
[1739932873077,0.03,169.56,169.53,7.67011095]
[1739932873282,0.03,169.56,169.54,13.41184853]
[1739932873599,0.03,169.56,169.52,7.67011095]
[1739932873800,0.03,169.56,169.51,7.67011095]
[1739932873977,0.03,169.56,169.52,21.08195948]
[1739932874182,0.03,169.56,169.54,13.41184853]
[1739932874772,0.03,169.56,169.51,21.08195948]
[1739932876080,7.70011095,169.56,169.49,10.57645759]
[1739932876485,7.67011095,169.55,169.48,88.63311095]
[1739932876685,7.67011095,169.54,169.48,80.963]
[1739932876884,7.67011095,169.54,169.49,13.41184853]
[1739932877086,90.37011095,169.54,169.48,13.47484853]
[1739932877475,90.37011095,169.54,169.51,0.063]
[1739932877779,82.7,169.54,169.51,0.063]
[1739932878170,82.7,169.54,169.51,13.47484853]
[1739932878976,82.7,169.54,169.51,7.73311095]
[1739932879202,82.7,169.54,169.53,7.67011095]
[1739932879368,0.03,169.56,169.53,7.67011095]
[1739932879571,0.03,169.56,169.51,7.73311095]
[1739932879999,0.03,169.56,169.52,13.41184853]
[1739932880205,0.03,169.56,169.52,7.67011095]
[1739932881709,0.03,169.56,169.52,13.41184853]
[1739932883782,0.03,169.56,169.51,13.47484853]
[1739932884471,0.03,169.56,169.51,7.73311095]
[1739932884670,82.73,169.56,169.51,13.47484853]
[1739932884901,90.40011095,169.56,169.51,13.47484853]
[1739932885105,7.67011095,169.55,169.51,0.063]
[1739932885408,7.67011095,169.54,169.51,0.063]
[1739932885777,7.67011095,169.52,169.51,0.063]
[1739932887107,7.67011095,169.53,169.51,0.063]
[1739932887403,1.5612,169.54,169.51,0.063]
[1739932887707,7.67011095,169.53,169.51,0.063]
[1739932888086,7.17011095,169.53,169.51,0.063]
[1739932888477,9.23131095,169.54,169.51,0.063]
[1739932888707,7.67011095,169.55,169.51,0.063]
[1739932889692,7.67011095,169.54,169.51,0.063]
[1739932890013,7.67011095,169.52,169.51,0.063]
[1739932890383,7.17011095,169.52,169.51,0.063]
[1739932890813,82.7,169.52,169.51,0.063]
[1739932895002,82.7,169.52,169.51,21.14495948]
[1739932896615,5.9276,169.56,169.53,13.41184853]